Cogmind - Beta 16.1 @@@ ROGUE MODE // 2026.04.25 @ 21:27:35 Player: mephiles96 Result: Destroyed by Y-54 Guardian with Flak Gun Performance ------------- Evolutions (0) 0 Regions Visited (3) 600 Robots Destroyed (30) 150 Value Destroyed (571) 571 Prototype IDs (0) 0 Alien Tech Used (0) 0 Bonus (0) 0 TOTAL SCORE: 1321 Bonus ------- None Cogmind --------- Core Integrity 0/250 Matter 15/300 Energy 100/100 System Corruption 0% Temperature Cool (12) Movement Core (350) Ox6 Location -7/Recycling Parts ------- > --- POWER (1) -------- (None) > --- PROPULSION (2) --- (None) > --- UTILITY (2) ------ Large Storage Unit Advanced Visual Processing Unit > --- WEAPON (2) ------- (None) > --- INVENTORY (15) --- Light Treads Aluminum Leg Aluminum Leg Compact Wheel Medium Storage Unit Sensor Array Signal Interpreter Terrain Scanner Medium Laser Mining Laser Peak State ------------ > --- POWER ------------ Light Ion Engine > --- PROPULSION ------- Light Treads Wheel > --- UTILITY ---------- Large Storage Unit Improved Terrain Scanner > --- WEAPON ----------- Light Assault Rifle > --- INVENTORY -------- Light Treads Aluminum Leg Aluminum Leg Compact Wheel Medium Storage Unit Sensor Array Signal Interpreter Terrain Scanner Medium Laser Mining Laser [Rating: 9] Favorites ----------- Power Light Ion Engine Engine Light Ion Engine Propulsion Light Treads Treads Light Treads Leg Aluminum Leg Wheel Wheel Utility Large Storage Unit Device Structural Scanner Storage Large Storage Unit Processor Advanced Visual Processing Unit Weapon Light Assault Rifle Energy Gun Medium Laser Ballistic Gun Light Assault Rifle Launcher Grenade Launcher Special Weapon Mining Laser Build | -11 -10 -10 -7 ------- Run | Yrd Mat Sub Rec Slots Evolved . | . . . . Power . | . . . . Propulsion . | . . . . Utility . | . . . . Weapon . | . . . . Parts Attached 17 | 5 8 3 1 Power 1 | . 1 . . Engine 1 | . 1 . . Core . | . . . . Reactor . | . . . . Propulsion 5 | 3 1 1 . Treads 3 | 2 1 . . Leg . | . . . . Wheel 2 | 1 . 1 . Hover . | . . . . Flight . | . . . . Utility 7 | 1 4 1 1 Device 4 | 1 2 1 . Storage 2 | . 2 . . Processor 1 | . . . 1 Hackware . | . . . . Protection . | . . . . Artifact . | . . . . Weapon 4 | 1 2 1 . Energy Gun . | . . . . Energy Cannon . | . . . . Ballistic Gun 2 | 1 1 . . Ballistic Cannon . | . . . . Launcher 1 | . . 1 . Special Weapon 1 | . 1 . . Impact Weapon . | . . . . Slashing Weapon . | . . . . Piercing Weapon . | . . . . Special Melee Weapon . | . . . . Unidentified Prototypes . | . . . . Parts Lost 11 | . 2 7 2 Power 2 | . 1 1 . Propulsion 3 | . . 2 1 Utility 3 | . 1 2 . Weapon 3 | . . 2 1 Highest Loss Streak 3 | . 1 3 2 To Critical Strikes . | . . . . Average Backups 10 | 6 9 12 10 Power . | 1 . . . Propulsion 4 | 4 4 4 4 Utility 3 | . 2 4 4 Weapon 2 | 1 2 2 2 Tool/Special . | . . . . Unused Backups 7 | . 2 . 5 Power 1 | . 1 . . Propulsion 2 | . . . 2 Utility 3 | . 1 . 2 Weapon 1 | . . . 1 Tool/Special . | . . . . Average Slot Usage (%) 94 | . 98 94 48 Engine 12 | . 13 13 . Treads 24 | . 27 23 . Wheel 1 | . . 1 12 Device 12 | . 13 14 . Storage 14 | . 14 14 14 Ballistic Gun 23 | . 27 17 12 Launcher 3 | . . 9 . Peak Build Rating 9 | 8 8 9 7 Average Rating 7 | 6 7 7 5 On Entrance 6 | 6 8 8 4 Avg Prop Armor Cover (%) 15 | . . 15 . Naked Turns . | . . . . Heaviest Build 28 | 11 26 28 21 Greatest Support 40 | 40 40 40 10 Greatest Overweight (x) 6 | . 1 2 6 Average Overweight (x) . | . . . 2 Largest Inventory Capacity 15 | 8 15 15 15 Average Capacity 14 | 8 14 15 15 Most Carried 13 | 8 13 13 10 Average Carried 10 | 6 9 12 10 Final Capacity 15 | 8 15 15 15 Final Carried 13 | 8 13 10 10 Class Distribution -------------------- 100% | Mutant Dominant Class ---------------- Mutant | -10/Materials Mutant | -10/Subcaves Mutant | -7/Recycling Resources | -11 -10 -10 -7 ----------- Run | Yrd Mat Sub Rec Matter Collected 484 | 256 202 26 . Remotely . | . . . . Salvage Created 825 | 104 578 143 . Parts 61 | 8 36 17 . Haulers Intercepted 1 | . 1 . . Recyclers Shooed 2 | . 2 . . Parts Field Recycled . | . . . . Retrieved Matter . | . . . . Parts Self-Destructed 4 | . . 4 . Prevented . | . . . . Parts Restored . | . . . . Kills | -11 -10 -10 -7 ------- Run | Yrd Mat Sub Rec Combat Hostiles Destroyed 20 | . 9 11 . Guns 9 | . 9 . . AOE 11 | . . 11 . Classes Destroyed 10 | 2 6 2 . Worker 2 | . 2 . . Builder 1 | . 1 . . Tunneler 1 | 1 . . . Hauler 1 | . 1 . . Recycler 3 | 1 2 . . Watcher 2 | . 2 . . Swarmer 10 | . 3 7 . Grunt 6 | . 6 . . Sentry 1 | . . 1 . Subdweller 3 | . . 3 . Best Kill Streak 4 | 2 4 4 . Combat Bots Only 4 | . 4 4 . Max Kills in Single Turn 2 | 1 1 2 . Gunslinging . | . . . . Exploded 2 | . . 2 . Melee . | . . . . Uniques/NPCs Destroyed . | . . . . Combat | -11 -10 -10 -7 -------- Run | Yrd Mat Sub Rec Hostile Shots Fired 174 | . 45 102 27 Missed 64 | . 10 46 8 Hits 110 | . 35 56 19 Projectile 110 | . 35 56 19 Critical Strikes 2 | . . 2 . Damage Taken 1072 | . 411 519 142 Core 252 | . 107 67 78 Absorbed by Shields . | . . . . Core Remaining (%) 100 | 100 . . . Volleys Fired 88 | 3 59 26 . Largest 2 | 2 2 2 . Hottest 100 | 40 100 50 . Shots Fired 155 | 6 115 34 . Gun 127 | 6 113 8 . Cannon . | . . . . Launcher 26 | . . 26 . Special 2 | . 2 . . Kinetic 127 | 6 113 8 . Thermal 2 | . 2 . . Explosive 26 | . . 26 . Electromagnetic . | . . . . Robot Hit Streak 17 | 5 17 3 . Robot Miss Streak 3 | . 3 1 . Penetration Max . | . . . . Secondary Targets 1 | . 1 . . Max Gunslinging Chain 1 | . 1 . . Shots Hit Robots 89 | 5 76 8 . Core Hits 54 | 4 33 17 . Critical Kills . | . . . . Critical Parts Destroyed . | . . . . Critical Strikes . | . . . . Melee Attacks . | . . . . Impact . | . . . . Slashing . | . . . . Piercing . | . . . . Sneak Attacks . | . . . . Combat Hostiles . | . . . . Follow-up Attacks . | . . . . Damage Inflicted 1396 | 40 612 744 . Guns 653 | 40 599 14 . Cannons . | . . . . Explosions 730 | . . 730 . Melee . | . . . . Ramming 13 | . 13 . . Kinetic 653 | 40 599 14 . Thermal . | . . . . Explosive 730 | . . 730 . Electromagnetic . | . . . . Impact . | . . . . Slashing . | . . . . Piercing . | . . . . Highest Corruption . | . . . . Average Corruption . | . . . . Corruption Purged . | . . . . Corruption Blocked . | . . . . Overload Shots . | . . . . Overflow Damage 33 | . . 33 . Projectiles . | . . . . Explosions 33 | . . 33 . Melee . | . . . . Knockbacks . | . . . . Impact . | . . . . Kinetic . | . . . . Secondary . | . . . . Self-Inflicted Damage 93 | . . 93 . Shots 3 | . . 3 . Rammed 2 | . 2 . . Targets Rammed 2 | . 2 . . Kicked . | . . . . Crushed . | . . . . Highest Temperature 40 | . 40 12 . Average Temperature 11 | . 10 12 . Received Heat Transfer 534 | . 210 282 42 Siege Activations . | . . . . Martial Activations . | . . . . Shielding Activations . | . . . . Robots Disrupted . | . . . . Combat Hostiles . | . . . . Robots Corrupted . | . . . . Combat Hostiles . | . . . . Parts Fried . | . . . . Impact Corruptions . | . . . . Robots Melted . | . . . . Combat Hostiles . | . . . . Parts Melted . | . . . . Heat Transferred . | . . . . Parts Sabotaged . | . . . . Parts Stolen . | . . . . Parts Stripped . | . . . . Power Chain Reactions . | . . . . Alert | -11 -10 -10 -7 ------- Run | Yrd Mat Sub Rec Maximum Alert Level . | . . . . Low Security (%) 100 | 100 100 . 100 Level 1 . | . . . . Level 2 . | . . . . Level 3 . | . . . . Level 4 . | . . . . Level 5 . | . . . . High Security . | . . . . Max Security . | . . . . Peak Influence 99 | 5 99 . 55 Initial 55 | . . . 55 Average 26 | . 27 . 36 Influence Increases 587 | 10 287 290 . Destroy 0b10 Robot/C 340 | . 180 160 . Destroy 0b10 Robot/NC 50 | 10 40 . . Destroy Leader 56 | . 46 10 . Successful Hack 6 | . 6 . . Disable Machine 15 | . 15 . . Lose Combat Pursuer 120 | . . 120 . Influence Decreases 587 | 10 287 174 116 Entered New Map 61 | . . . 61 Time Decay 441 | 10 277 114 40 Lost Part 85 | . 10 60 15 Squads Dispatched 1 | . 1 . . Investigation . | . . . . Extermination . | . . . . Reinforcement 1 | . 1 . . Assault . | . . . . Garrison . | . . . . Intercept . | . . . . Searches Triggered . | . . . . Construction Impeded . | . . . . Haulers Reinforced . | . . . . Active Scanning Responses . | . . . . Cargo Convoy Interrupts . | . . . . Stealth | -11 -10 -10 -7 --------- Run | Yrd Mat Sub Rec Distress Signals . | . . . . Communications Jammed . | . . . . Distress Signals . | . . . . Times Spotted 29 | . 12 16 1 Peak Tracking Total 4 | . 4 3 1 Tactical Retreats 2 | . . 2 . Traps | -11 -10 -10 -7 ------- Run | Yrd Mat Sub Rec Traps Triggered 3 | . 3 . . Indirectly . | . . . . Trap Hack Attempts . | . . . . Triggered . | . . . . Disarmed . | . . . . Reprogrammed . | . . . . Reused . | . . . . Traps Extracted . | . . . . Installed . | . . . . Triggered . | . . . . Machines | -11 -10 -10 -7 ---------- Run | Yrd Mat Sub Rec Machines Disabled 3 | . 1 2 . Max in Single Turn 2 | . 1 2 . Machines Repaired . | . . . . Machines Dismantled . | . . . . Machines Sabotaged . | . . . . Overloaded Fab Kills . | . . . . Hacking | -11 -10 -10 -7 --------- Run | Yrd Mat Sub Rec Machines Accessed 2 | . 2 . . Terminals 2 | . 2 . . Fabricators . | . . . . Repair Stations . | . . . . Recycling Units . | . . . . Scanalyzers . | . . . . Garrison Access . | . . . . Total Hacks 7 | . 7 . . Successful 3 | . 3 . . Failed 4 | . 4 . . Catastrophic 1 | . 1 . . Database Lockouts . | . . . . Manual 7 | . 7 . . Terminals 7 | . 7 . . Fabricators . | . . . . Repair Stations . | . . . . Recycling Units . | . . . . Scanalyzers . | . . . . Garrison Access . | . . . . Terminal Hacks 2 | . 2 . . Robot Analysis 1 | . 1 . . Zone Layout 1 | . 1 . . Fabricator Hacks . | . . . . Repair Station Hacks . | . . . . Recycling Unit Hacks . | . . . . Scanalyzer . | . . . . Garrison Access Hacks . | . . . . Unauthorized Hacks 1 | . 1 . . Terminals 1 | . 1 . . Track 1 | . 1 . . Fabricators . | . . . . Repair Stations . | . . . . Recycling Units . | . . . . Scanalyzers . | . . . . Garrison Access . | . . . . Data Cores Recovered . | . . . . Used . | . . . . Hacking Detections 2 | . 2 . . Full Trace Events . | . . . . Feedback Events . | . . . . Feedback Blocked . | . . . . Robot Schematics Acquired . | . . . . Robots Built . | . . . . Authchips . | . . . . Time . | . . . . Total Robot Build Rating . | . . . . Part Schematics Acquired . | . . . . Parts Built . | . . . . Authchips . | . . . . Time . | . . . . Total Part Build Rating . | . . . . Part Studies Acquired . | . . . . Parts Repaired . | . . . . Time . | . . . . Parts Recycled . | . . . . Recycled Matter . | . . . . Retrieved Matter . | . . . . Retrieved Components . | . . . . Parts Scanalyzed . | . . . . Part Schematics Acquired . | . . . . Parts Damaged . | . . . . Bothacking | -11 -10 -10 -7 ------------ Run | Yrd Mat Sub Rec Used RIF Installer . | . . . . Robots Hacked . | . . . . Non-combat . | . . . . Combat . | . . . . Robot Hacks Applied . | . . . . Relay Couplers Released . | . . . . Fabnet Peak Effective % . | . . . . Robots Rewired . | . . . . Allies Hacked . | . . . . Hacks Repelled . | . . . . Allies | -11 -10 -10 -7 -------- Run | Yrd Mat Sub Rec Total Allies . | . . . . Largest Group . | . . . . Highest-Rated Group . | . . . . Highest-Rated Ally . | . . . . Total Orders . | . . . . Ally Attacks . | . . . . Total Damage . | . . . . Kills . | . . . . Allies Corrupted . | . . . . Allies Melted . | . . . . Intel | -11 -10 -10 -7 ------- Run | Yrd Mat Sub Rec Active Infowar (turns) 1600 | 38 978 522 62 Optics 62 | . . . 62 Sensors 88 | . 88 . . Terrain 42 | . . 42 . Structural 765 | . 285 480 . Seismic 643 | 38 605 . . Robot Analysis Total 1 | . 1 . . Derelict Logs Recovered . | . . . . Drone Launches . | . . . . Drone Recoveries . | . . . . Exploration | -11 -10 -10 -7 ------------- Run | Yrd Mat Sub Rec Turns Passed 1731 | 83 1029 532 87 Spaces Moved 771 | 43 424 261 43 Core 2 | . . . 2 Treads 686 | 39 424 223 . Legs 4 | 4 . . . Wheels 79 | . . 38 41 Hover . | . . . . Flight . | . . . . Fastest Speed 110 | 120 160 110 110 Average Speed 160 | 156 160 168 121 Slowest Speed 350 | 160 240 240 350 Overloaded Moves . | . . . . Propulsion Burnouts . | . . . . Robots Hopped . | . . . . Potential Cave-ins . | . . . . Cave-ins Triggered . | . . . . Exploration Rate (%) 22 | 3 59 19 10 Regions Visited 3 Branch Regions 2 Pre-discovered Areas 1 | . . 1 . Known Exits Taken . | . . . . Unknown Exits Taken 3 | 1 1 1 . Scrap Searched . | . . . . Spaces Dug 9 | . . 9 . Terrain Destroyed 172 | . . 172 . Melee . | . . . . Projectile . | . . . . AOE 172 | . . 172 . Terrain Rammed . | . . . . Walls Destroyed . | . . . . Machines Disabled . | . . . . Actions | -11 -10 -10 -7 --------- Run | Yrd Mat Sub Rec Total 1120 | 52 670 320 78 Wait 193 | . 163 30 . Move 768 | 42 423 260 43 Hop . | . . . . Pick Up 8 | 2 6 . . Fast Attach 9 | 1 7 . 1 Attach 4 | . 1 3 . Detach . | . . . . Swap 11 | 4 6 1 . Drop 3 | . 3 . . Fire 88 | 3 59 26 . Melee . | . . . . Ram . | . . . . Kick . | . . . . Crush 2 | . 2 . . Escape Stasis . | . . . . Rewire 34 | . . . 34 Trap . | . . . . Miscellaneous . | . . . . Route ------- -11/Scrapyard -10/Materials (discovered 3 exits: [*Mat] / [*Min] / [*Sub]) -10/Subcaves (discovered 2 exits: [*Mat] / [*Rec]) -7/Recycling History --------- Turn | Location | Event 1 | -11/Scrapyard | Discovered new exit (range 1) 84 | -11/Scrapyard | Entered Materials 311 | -10/Materials | Build established: Mutant 422 | -10/Materials | Discovered new exit (range 3) 977 | -10/Materials | Discovered new exit (range 12) 1039 | -10/Materials | Discovered new exit (range 10) 1113 | -10/Materials | Entered Subcaves 1114 | -10/Subcaves | Approached by a straggling Scientist 1280 | -10/Subcaves | Discovered new exit (range 13) 1287 | -10/Subcaves | Core integrity fell below 50% 1437 | -10/Subcaves | Ambushed by Subdweller buried in earth 1449 | -10/Subcaves | Ambushed by Subdweller buried in earth 1587 | -10/Subcaves | Discovered new exit (range 11) 1612 | -10/Subcaves | Learned location of Zion (-7) 1612 | -10/Subcaves | Met a Zionite searching for "candidates" 1624 | -10/Subcaves | Lost 3 parts (1u2w) 1645 | -10/Subcaves | Entered Recycling 1676 | -7/Recycling | Lost 3 parts (1p1n1u) 1726 | -7/Recycling | Core integrity fell below 20% 1732 | -7/Recycling | Destroyed by Y-54 Guardian with Flak Gun Last Messages --------------- 01720_ Y-54 Guardian is dormant, system inaccessible. 01721_ Attempting to rewire Y-54 Guardian. 01721_ Y-54 Guardian is dormant, system inaccessible. 01722_ Attempting to rewire Y-54 Guardian. 01722_ Y-54 Guardian is dormant, system inaccessible. 01723_ Attempting to rewire Y-54 Guardian. 01723_ Y-54 Guardian is dormant, system inaccessible. 01724_ Attempting to rewire Y-54 Guardian. 01724_ Y-54 Guardian is dormant, system inaccessible. 01725_ Attempting to rewire Y-54 Guardian. 01725_ Y-54 Guardian is dormant, system inaccessible. 01725_ Y-54 Guardian springs to life. 01725_ Lgt. Assault Rifle destroyed. 01725_ Wheel destroyed. Map ----- +----------------------------------------------------+ | ??????????????????????????????????????????????? | | ??????????????????????????????????????????????? | | ??????????????????????????????????????????????? | | ??????????????????????????????????????????????? | | ??????????????????????????????????????????????? | | ??????????????????????????????????????????????? | | ??????????????????????????????????????????????? | | ??????????????????????????????????????????????? | | ??????????????????????????????????????????????? | | ??????????????????????????????????????????????? | | ??????????????????????????????????????????????? | | ??????????????????????????????????????????????? | | ??????????????????????????????????????????????? | | ??????????????????????????????????????????????? | | ??????????????????????????????????????????????? | | ??????????????????????????????????????????????? | | ??????????????????????????????????????????????? | | ??????????????????????????????????????????????? | | ??????????????????????????????????????????????? | | ???????????# ????????#######??????????????????? | | ???????????# ####### #??????????????????? | | ?????????????? #??????????????????? | | ???????????????? #??????????????????? | | ??????????????????? #??????????????????? | | ?????????????????????# #??????????????????? | | ??????????????????????# @##??????????????????? | | ??????????????????????# Y###????????????????? | | ??????????????????????# ## #####????????????? | | ??????????????????????# # #????????????? | | ??????????????????????# # #????????????? | | ??????????????????????# # #????????????? | | ???????" ?????????????# # #????????????? | | ??????? ???######???# # #????????????? | | ???????" ??#"""""#??# # #????????????? | | ????????? ##""Y""#### # #????????????? | | ?????????? # # #????????????? | | ??????????? + + #????????????? | | ????????????# """" # #????????????? | | ????????????# """""" # #????????????? | | ????????????# """"" # #????????????? | | ????????????# """"" # #????????????? | | ????????????# # ] #????????????? | | ????????????# # #????????????? | | ????????????# #### # #????????????? | | ????????????# #??# # #???????????? | | ????????????# #??##### ! ##???????????? | | ????????????# ####??????# #????????????? | | ??????????? ??????????########????????????? | | ??????????####+#??????????????????????????????? | | ??????????????????????????????????????????????? | +----------------------------------------------------+ Best States ------------- Heat Dissipation 25 Energy Generation 10 Energy Capacity 125 Matter Stores 300 Matter Capacity 300 Sight Range 20 Robot Scan Range 14 Terrain Scan Range 16 Terrain Scan Density 10 Evasion (%) 40 Recoil Reduction 2 Item Schematics ----------------- None Robot Schematics ------------------ None Fabricated ------------ Nothing Repaired ---------- Nothing Studied --------- None Alien Tech Used ----------------- None Achievements -------------- None Challenges ------------ None Game ------ Seed GravjetLobotomyScythe Manual? 0 Play Time 00:11:26 Cumulative 58.3 hours Start 2026.04.25 @ 21:16:31 End 2026.04.25 @ 21:27:35 Sessions 1 Manual Loads 0 Difficulty Rogue Special Mode None Game No. 73 Rogue 73 Adventurer 0 Explorer 0 Win Type - Total 1 Types 1/0/0/0/0/0/0/0/0/0 Lore% 32 Gallery% 35 Achievement% 29 Wizard Run 0 Options --------- Layout 2 ASCII 0 Keyboard 1 Movement Numpad Keybinds 1 Fullscreen 1 Font 24/Smallcaps Map View 50x44 Zoom Use 0% Tactical HUD 1 Map Filters NONE Filters NONE Steam 1 RUN: d428bf97-f6d0-4e07-bce7-903e22c5f07b